[Event "*** Titled Tuesday Blitz"]
[Site "Chess.com"]
[Date "2018.08.07"]
[Round "4"]
[White "Stormeman100100"]
[Black "MateusViageiro"]
[Result "0-1"]
[WhiteElo "2132"]
[BlackElo "2333"]
[TimeControl "180+2"]
[EndTime "13:49:41 PDT"]
[Termination "MateusViageiro won by resignation"]

1. e4 {[%clk 0:02:59.8]} 1... e5 {[%clk 0:02:54.8]} 2. Nf3 {[%clk 0:02:59.8]}
2... Nc6 {[%clk 0:02:55.7]} 3. Bb5 {[%clk 0:02:57.1]} 3... a6 {[%clk 0:02:56.2]}
4. Ba4 {[%clk 0:02:56.8]} 4... Nf6 {[%clk 0:02:54.7]} 5. O-O {[%clk 0:02:56.8]}
5... b5 {[%clk 0:02:55.5]} 6. Bb3 {[%clk 0:02:57.1]} 6... Be7 {[%clk 0:02:56.8]}
7. Re1 {[%clk 0:02:54.6]} 7... O-O {[%clk 0:02:57]} 8. a4 {[%clk 0:02:54.6]}
8... Rb8 {[%clk 0:02:55]} 9. d4 {[%clk 0:02:26.5]} 9... d6 {[%clk 0:02:54.1]}
10. axb5 {[%clk 0:02:16.6]} 10... axb5 {[%clk 0:02:50.5]} 11. d5 {[%clk
0:02:17.6]} 11... Nb4 {[%clk 0:02:46]} 12. c3 {[%clk 0:02:18.1]} 12... Na6
{[%clk 0:02:46.7]} 13. Nbd2 {[%clk 0:02:10.7]} 13... Nc5 {[%clk 0:02:43.8]} 14.
Bc2 {[%clk 0:02:11]} 14... b4 {[%clk 0:02:43.3]} 15. Nc4 {[%clk 0:02:07.5]}
15... Qd7 {[%clk 0:02:31.7]} 16. Be3 {[%clk 0:01:57.1]} 16... Qb5 {[%clk
0:02:32.6]} 17. Ra5 {[%clk 0:01:24.2]} 17... Qxc4 {[%clk 0:01:58.4]} 18. Nd2
{[%clk 0:01:24]} 18... Qb5 {[%clk 0:01:31.9]} 19. Rxb5 {[%clk 0:01:23.7]} 19...
Rxb5 {[%clk 0:01:33.7]} 20. Bxc5 {[%clk 0:01:09.3]} 20... dxc5 {[%clk
0:01:32.4]} 21. Bd3 {[%clk 0:01:04.7]} 21... Rb8 {[%clk 0:01:31.3]} 22. Nc4
{[%clk 0:01:05.5]} 22... Bd6 {[%clk 0:01:29.3]} 23. f4 {[%clk 0:01:03]} 23...
Nd7 {[%clk 0:01:25.9]} 24. Qf3 {[%clk 0:00:17.6]} 24... Re8 {[%clk 0:00:55]} 25.
fxe5 {[%clk 0:00:16.3]} 25... Nxe5 {[%clk 0:00:55.4]} 26. Nxe5 {[%clk
0:00:16.4]} 26... Bxe5 {[%clk 0:00:56.4]} 27. Bc4 {[%clk 0:00:15.7]} 27... bxc3
{[%clk 0:00:53.4]} 28. bxc3 {[%clk 0:00:12.8]} 28... Rf8 {[%clk 0:00:42.5]} 29.
Rf1 {[%clk 0:00:13]} 29... Rb6 {[%clk 0:00:34.8]} 30. Qh5 {[%clk 0:00:12.6]}
30... Bxc3 {[%clk 0:00:29.2]} 31. d6 {[%clk 0:00:12.4]} 31... Bd4+ {[%clk
0:00:29.6]} 32. Kh1 {[%clk 0:00:13]} 32... g6 {[%clk 0:00:19.7]} 33. Qf3 {[%clk
0:00:12]} 33... cxd6 {[%clk 0:00:17.5]} 34. Qd3 {[%clk 0:00:12.7]} 34... Rb7
{[%clk 0:00:14.7]} 35. h3 {[%clk 0:00:13.3]} 35... Kg7 {[%clk 0:00:15.5]} 36.
Bd5 {[%clk 0:00:14.2]} 36... Re7 {[%clk 0:00:16.3]} 37. Qc4 {[%clk 0:00:15.2]}
37... Be6 {[%clk 0:00:17.4]} 38. Bxe6 {[%clk 0:00:15.5]} 38... Rxe6 {[%clk
0:00:19.3]} 39. Qd3 {[%clk 0:00:14.5]} 39... Rf6 {[%clk 0:00:20.4]} 40. Rxf6
{[%clk 0:00:14.9]} 40... Kxf6 {[%clk 0:00:22.3]} 41. Qf3+ {[%clk 0:00:15.6]}
41... Kg7 {[%clk 0:00:23.6]} 42. g4 {[%clk 0:00:16.4]} 42... Rb8 {[%clk
0:00:24.2]} 43. Kg2 {[%clk 0:00:15.7]} 43... Be5 {[%clk 0:00:25.6]} 44. Qd3
{[%clk 0:00:12.9]} 44... Rb2+ {[%clk 0:00:25.9]} 45. Kf3 {[%clk 0:00:14.1]}
45... Rb4 {[%clk 0:00:24.9]} 46. Kg2 {[%clk 0:00:11.6]} 46... c4 {[%clk
0:00:25.9]} 47. Qc2 {[%clk 0:00:06]} 47... Rb2 {[%clk 0:00:26.3]} 0-1

[Event "*** Titled Tuesday Blitz"]
[Site "Chess.com"]
[Date "2018.08.07"]
[Round "4"]
[White "GadimbayliA"]
[Black "Alexander_Moskalenko"]
[Result "1-0"]
[WhiteElo "2690"]
[BlackElo "2820"]
[TimeControl "180+2"]
[EndTime "13:49:43 PDT"]
[Termination "GadimbayliA won by resignation"]

1. e4 {[%clk 0:03:01.9]} 1... c5 {[%clk 0:03:00.2]} 2. Nf3 {[%clk 0:03:01.8]}
2... d6 {[%clk 0:03:01.7]} 3. d4 {[%clk 0:03:02.2]} 3... cxd4 {[%clk 0:03:03.6]}
4. Nxd4 {[%clk 0:03:04]} 4... Nf6 {[%clk 0:03:05.2]} 5. Nc3 {[%clk 0:03:03.2]}
5... Nc6 {[%clk 0:03:06.7]} 6. Bb5 {[%clk 0:03:03.4]} 6... Bd7 {[%clk
0:03:06.5]} 7. Bg5 {[%clk 0:03:02.4]} 7... e6 {[%clk 0:03:07.8]} 8. O-O {[%clk
0:02:58.9]} 8... h6 {[%clk 0:03:09]} 9. Bh4 {[%clk 0:02:45.6]} 9... a6 {[%clk
0:02:52.4]} 10. Bxc6 {[%clk 0:02:39.6]} 10... bxc6 {[%clk 0:02:54.3]} 11. e5
{[%clk 0:02:39.4]} 11... dxe5 {[%clk 0:02:40.6]} 12. Nf3 {[%clk 0:02:40.4]}
12... Be7 {[%clk 0:02:20.1]} 13. Nxe5 {[%clk 0:02:36.1]} 13... Rb8 {[%clk
0:02:11.7]} 14. Qf3 {[%clk 0:02:32.1]} 14... O-O {[%clk 0:02:00.7]} 15. Rad1
{[%clk 0:02:29.1]} 15... Nd5 {[%clk 0:02:01.4]} 16. Bxe7 {[%clk 0:02:26.2]}
16... Qxe7 {[%clk 0:02:03.3]} 17. Ne4 {[%clk 0:02:25.7]} 17... Rfd8 {[%clk
0:01:51.5]} 18. c4 {[%clk 0:02:21.8]} 18... f5 {[%clk 0:01:37.7]} 19. Nc3 {[%clk
0:02:14]} 19... Nf6 {[%clk 0:01:36.1]} 20. b3 {[%clk 0:01:55.6]} 20... c5 {[%clk
0:01:35.3]} 21. Rd2 {[%clk 0:01:49.1]} 21... Be8 {[%clk 0:01:36.4]} 22. Rfd1
{[%clk 0:01:50]} 22... Rxd2 {[%clk 0:01:30.4]} 23. Rxd2 {[%clk 0:01:49.4]} 23...
Rd8 {[%clk 0:01:32.3]} 24. Qd1 {[%clk 0:01:46.7]} 24... Rxd2 {[%clk 0:01:26.7]}
25. Qxd2 {[%clk 0:01:48.6]} 25... Nd7 {[%clk 0:01:24.2]} 26. Nc6 {[%clk
0:01:44.4]} 26... Qf6 {[%clk 0:01:25.2]} 27. Qe3 {[%clk 0:01:41.4]} 27... e5
{[%clk 0:01:16.2]} 28. Nd5 {[%clk 0:01:39.9]} 28... Qe6 {[%clk 0:01:17.5]} 29.
Nce7+ {[%clk 0:01:32.3]} 29... Kf7 {[%clk 0:01:15.2]} 30. Qf3 {[%clk 0:01:24.6]}
30... f4 {[%clk 0:01:14.3]} 31. Qe4 {[%clk 0:01:20.6]} 31... Nf6 {[%clk
0:01:11.2]} 32. Nxf6 {[%clk 0:01:18]} 32... Kxf6 {[%clk 0:00:55.2]} 33. Nd5+
{[%clk 0:01:16.9]} 33... Kf7 {[%clk 0:00:56.7]} 34. g3 {[%clk 0:01:16.3]} 34...
Bc6 {[%clk 0:00:54.5]} 35. f3 {[%clk 0:01:11]} 35... fxg3 {[%clk 0:00:51.1]} 36.
hxg3 {[%clk 0:01:12.1]} 36... a5 {[%clk 0:00:53]} 37. Kg2 {[%clk 0:01:10]} 37...
h5 {[%clk 0:00:43.4]} 38. Kf2 {[%clk 0:01:07.2]} 38... g6 {[%clk 0:00:44.6]} 39.
g4 {[%clk 0:01:03.2]} 39... hxg4 {[%clk 0:00:38.6]} 40. fxg4 {[%clk 0:01:05.1]}
40... Bxd5 {[%clk 0:00:40.1]} 41. Qxd5 {[%clk 0:00:48.8]} 41... Kf6 {[%clk
0:00:36.5]} 42. Qd8+ {[%clk 0:00:43.4]} 42... Kg7 {[%clk 0:00:35.9]} 43. Qxa5
{[%clk 0:00:41.7]} 43... Qxg4 {[%clk 0:00:35.2]} 44. Qc7+ {[%clk 0:00:39.2]}
44... Kf6 {[%clk 0:00:34.9]} 45. Qd6+ {[%clk 0:00:40.3]} 45... Qe6 {[%clk
0:00:36]} 46. Qxc5 {[%clk 0:00:32.4]} 46... Qf5+ {[%clk 0:00:37.1]} 47. Ke3
{[%clk 0:00:31.7]} 47... Qf4+ {[%clk 0:00:38.3]} 48. Ke2 {[%clk 0:00:29.8]}
48... g5 {[%clk 0:00:39.6]} 49. Qf8+ {[%clk 0:00:25.9]} 49... Ke6 {[%clk
0:00:41]} 50. Qxf4 {[%clk 0:00:26.3]} 50... exf4 {[%clk 0:00:42.4]} 51. a4
{[%clk 0:00:24.7]} 51... g4 {[%clk 0:00:43.6]} 52. a5 {[%clk 0:00:24.3]} 52...
Kd6 {[%clk 0:00:32]} 53. a6 {[%clk 0:00:23.8]} 53... Kc7 {[%clk 0:00:33.5]} 54.
b4 {[%clk 0:00:24.3]} 54... Kb6 {[%clk 0:00:35.4]} 55. b5 {[%clk 0:00:24.5]}
55... g3 {[%clk 0:00:34.4]} 56. Kf3 {[%clk 0:00:24]} 56... Ka7 {[%clk
0:00:35.3]} 57. c5 {[%clk 0:00:22.7]} 57... Kb8 {[%clk 0:00:37.2]} 58. b6 {[%clk
0:00:20.7]} 58... Ka8 {[%clk 0:00:39.1]} 59. c6 {[%clk 0:00:20.8]} 59... Kb8
{[%clk 0:00:41]} 60. c7+ {[%clk 0:00:21.5]} 60... Kc8 {[%clk 0:00:41]} 61. a7
{[%clk 0:00:22.8]} 1-0

[Event "*** Titled Tuesday Blitz"]
[Site "Chess.com"]
[Date "2018.08.07"]
[Round "4"]
[White "jk13"]
[Black "GrigorGrigorov"]
[Result "1-0"]
[WhiteElo "2523"]
[BlackElo "2690"]
[TimeControl "180+2"]
[EndTime "13:49:47 PDT"]
[Termination "jk13 won by resignation"]

1. e4 {[%clk 0:03:01.9]} 1... e6 {[%clk 0:03:00.8]} 2. d3 {[%clk 0:03:02.1]}
2... c5 {[%clk 0:02:59]} 3. Nf3 {[%clk 0:03:02.5]} 3... b6 {[%clk 0:03:00.2]} 4.
g3 {[%clk 0:03:02.7]} 4... Bb7 {[%clk 0:03:01.3]} 5. Bg2 {[%clk 0:03:04.2]} 5...
d6 {[%clk 0:03:02.1]} 6. O-O {[%clk 0:03:05.3]} 6... Nf6 {[%clk 0:03:03]} 7. a4
{[%clk 0:03:03.8]} 7... Be7 {[%clk 0:03:01.1]} 8. a5 {[%clk 0:03:04.6]} 8...
bxa5 {[%clk 0:02:59.2]} 9. Nbd2 {[%clk 0:03:03]} 9... Nc6 {[%clk 0:02:59.1]} 10.
Nc4 {[%clk 0:03:02.5]} 10... d5 {[%clk 0:02:58.3]} 11. exd5 {[%clk 0:03:02.8]}
11... exd5 {[%clk 0:02:59]} 12. Nce5 {[%clk 0:03:03.9]} 12... O-O {[%clk
0:02:58.3]} 13. Bd2 {[%clk 0:03:01.5]} 13... Bd6 {[%clk 0:02:49.2]} 14. Nxc6
{[%clk 0:03:02.2]} 14... Bxc6 {[%clk 0:02:50.2]} 15. Bxa5 {[%clk 0:03:04.1]}
15... Qb8 {[%clk 0:02:49.9]} 16. b3 {[%clk 0:03:02]} 16... Qb7 {[%clk
0:02:50.8]} 17. Nh4 {[%clk 0:02:57]} 17... Rfe8 {[%clk 0:02:48.2]} 18. Bd2
{[%clk 0:02:54]} 18... Bf8 {[%clk 0:02:41.9]} 19. Qf3 {[%clk 0:02:41.7]} 19...
Re6 {[%clk 0:02:38.8]} 20. Rfe1 {[%clk 0:02:30.4]} 20... Rae8 {[%clk 0:02:35.7]}
21. Rxe6 {[%clk 0:02:26]} 21... Rxe6 {[%clk 0:02:37.6]} 22. Qd1 {[%clk
0:02:15.6]} 22... g6 {[%clk 0:02:30.2]} 23. Ra5 {[%clk 0:02:08]} 23... Bg7
{[%clk 0:01:32]} 24. Rxc5 {[%clk 0:02:04.1]} 24... h5 {[%clk 0:01:15.5]} 25. h3
{[%clk 0:02:04.1]} 25... Qb6 {[%clk 0:01:11]} 26. Ra5 {[%clk 0:01:55.1]} 26...
Nd7 {[%clk 0:01:12]} 27. Bxd5 {[%clk 0:01:42.7]} 27... Rf6 {[%clk 0:00:56.2]}
28. Qe2 {[%clk 0:01:24.6]} 28... Rxf2 {[%clk 0:00:52.1]} 29. Qxf2 {[%clk
0:00:36.4]} 29... Bd4 {[%clk 0:00:52.8]} 30. Bxf7+ {[%clk 0:00:37.9]} 30... Kg7
{[%clk 0:00:37]} 31. Bc3 {[%clk 0:00:37.4]} 31... Bxc3 {[%clk 0:00:38.2]} 32.
Qxb6 {[%clk 0:00:37.1]} 32... axb6 {[%clk 0:00:39.2]} 33. Ra7 {[%clk 0:00:20.5]}
33... Kxf7 {[%clk 0:00:38.9]} 34. Rc7 {[%clk 0:00:22.1]} 34... Bd4+ {[%clk
0:00:28]} 35. Kh2 {[%clk 0:00:23.6]} 35... Bb5 {[%clk 0:00:24.9]} 36. Nf3 {[%clk
0:00:25]} 36... Bc5 {[%clk 0:00:18.4]} 37. c4 {[%clk 0:00:24.8]} 37... Bd6
{[%clk 0:00:19.1]} 38. Ra7 {[%clk 0:00:24.3]} 38... Bb8 {[%clk 0:00:14.7]} 39.
Ra1 {[%clk 0:00:18.7]} 39... Bc6 {[%clk 0:00:15.7]} 40. Nd4 {[%clk 0:00:20.6]}
40... Bb7 {[%clk 0:00:16.7]} 41. Nb5 {[%clk 0:00:21.3]} 41... Ne5 {[%clk
0:00:16.8]} 42. Kg1 {[%clk 0:00:18.4]} 42... Nxd3 {[%clk 0:00:15.1]} 43. Rd1
{[%clk 0:00:19.7]} 43... Ne5 {[%clk 0:00:15.2]} 44. Nd6+ {[%clk 0:00:20.4]}
44... Bxd6 {[%clk 0:00:11.7]} 45. Rxd6 {[%clk 0:00:22.3]} 45... Bc8 {[%clk
0:00:13.1]} 46. Rxb6 {[%clk 0:00:21]} 46... Bxh3 {[%clk 0:00:14]} 47. Kf2 {[%clk
0:00:20.9]} 47... Bf5 {[%clk 0:00:13.2]} 48. Ke3 {[%clk 0:00:21.6]} 48... Ke7
{[%clk 0:00:13.7]} 49. Kd4 {[%clk 0:00:21.8]} 49... Nf3+ {[%clk 0:00:14.2]} 50.
Kd5 {[%clk 0:00:23.1]} 50... g5 {[%clk 0:00:14.9]} 51. Rh6 {[%clk 0:00:23.5]}
51... h4 {[%clk 0:00:15.6]} 52. gxh4 {[%clk 0:00:25.4]} 52... gxh4 {[%clk
0:00:16.6]} 53. b4 {[%clk 0:00:27.1]} 53... h3 {[%clk 0:00:17.6]} 54. b5 {[%clk
0:00:28.5]} 54... h2 {[%clk 0:00:18.2]} 55. b6 {[%clk 0:00:30]} 55... Bc8 {[%clk
0:00:15.4]} 56. c5 {[%clk 0:00:29.8]} 56... Kf7 {[%clk 0:00:14.9]} 57. c6 {[%clk
0:00:30.5]} 57... Kg7 {[%clk 0:00:14.2]} 58. Rxh2 {[%clk 0:00:31.3]} 58... Nxh2
{[%clk 0:00:14.2]} 59. b7 {[%clk 0:00:33.2]} 1-0

[Event "*** Titled Tuesday Blitz"]
[Site "Chess.com"]
[Date "2018.08.07"]
[Round "4"]
[White "SantoBlue"]
[Black "MaestroASK"]
[Result "1-0"]
[WhiteElo "2665"]
[BlackElo "2413"]
[TimeControl "180+2"]
[EndTime "13:49:50 PDT"]
[Termination "SantoBlue won on time"]

1. e4 {[%clk 0:03:01]} 1... d6 {[%clk 0:02:53.2]} 2. d4 {[%clk 0:03:01.6]} 2...
g6 {[%clk 0:02:53.5]} 3. Nf3 {[%clk 0:03:01.9]} 3... Bg7 {[%clk 0:02:53.5]} 4.
Bd3 {[%clk 0:03:03.8]} 4... e5 {[%clk 0:02:53.6]} 5. dxe5 {[%clk 0:03:03.2]}
5... dxe5 {[%clk 0:02:54.2]} 6. O-O {[%clk 0:03:05.1]} 6... f6 {[%clk
0:02:50.5]} 7. Qe2 {[%clk 0:03:03.9]} 7... Nd7 {[%clk 0:02:50.2]} 8. Rd1 {[%clk
0:03:01.6]} 8... Bh6 {[%clk 0:02:49.9]} 9. Bc4 {[%clk 0:03:01.6]} 9... Bxc1
{[%clk 0:02:49.1]} 10. Rxc1 {[%clk 0:03:02.3]} 10... Nh6 {[%clk 0:02:47.5]} 11.
Qe3 {[%clk 0:02:59]} 11... Nf7 {[%clk 0:02:46.3]} 12. Nc3 {[%clk 0:02:59.9]}
12... c6 {[%clk 0:02:44]} 13. Rd1 {[%clk 0:03:01.3]} 13... Qe7 {[%clk
0:02:43.9]} 14. a4 {[%clk 0:02:57.2]} 14... a5 {[%clk 0:02:43.8]} 15. Nd2 {[%clk
0:02:51.8]} 15... O-O {[%clk 0:02:42.1]} 16. Nb3 {[%clk 0:02:48.6]} 16... Kg7
{[%clk 0:02:40.9]} 17. Bxf7 {[%clk 0:02:39.4]} 17... Rxf7 {[%clk 0:02:38.7]} 18.
Nb1 {[%clk 0:02:40.5]} 18... Nf8 {[%clk 0:02:35.5]} 19. Na3 {[%clk 0:02:34.9]}
19... Ne6 {[%clk 0:02:22.2]} 20. Nc4 {[%clk 0:02:34.7]} 20... Qc7 {[%clk
0:02:17.7]} 21. Nc5 {[%clk 0:02:20.4]} 21... Nxc5 {[%clk 0:02:14.5]} 22. Qxc5
{[%clk 0:02:21]} 22... Be6 {[%clk 0:02:11.7]} 23. Ne3 {[%clk 0:02:10]} 23... Re7
{[%clk 0:01:57.1]} 24. Rd6 {[%clk 0:02:05.2]} 24... Rc8 {[%clk 0:01:53.5]} 25.
Rad1 {[%clk 0:02:05]} 25... b6 {[%clk 0:01:52.9]} 26. Qc3 {[%clk 0:02:05.4]}
26... Qb7 {[%clk 0:01:41.3]} 27. h4 {[%clk 0:02:01.1]} 27... h5 {[%clk 0:01:41]}
28. g3 {[%clk 0:02:00.9]} 28... c5 {[%clk 0:01:31.6]} 29. Nd5 {[%clk 0:02:01.3]}
29... Bxd5 {[%clk 0:01:29.9]} 30. R1xd5 {[%clk 0:01:57.6]} 30... Rc6 {[%clk
0:01:28.3]} 31. Rd8 {[%clk 0:01:57.1]} 31... Rc8 {[%clk 0:01:27.6]} 32. R8d6
{[%clk 0:01:56.5]} 32... Rc6 {[%clk 0:01:27.2]} 33. Rd8 {[%clk 0:01:47.5]} 33...
Rc8 {[%clk 0:01:27.3]} 34. Qc4 {[%clk 0:01:40.7]} 34... Rxd8 {[%clk 0:01:15.1]}
35. Rxd8 {[%clk 0:01:41.6]} 35... Rf7 {[%clk 0:01:13.9]} 36. Rd6 {[%clk
0:01:39.1]} 36... Rd7 {[%clk 0:01:08.5]} 37. Re6 {[%clk 0:01:32.4]} 37... Rd1+
{[%clk 0:00:58.4]} 38. Kh2 {[%clk 0:01:32.2]} 38... Rd2 {[%clk 0:00:43.1]} 39.
Re8 {[%clk 0:01:24.4]} 39... Qf7 {[%clk 0:00:37.3]} 40. Qb5 {[%clk 0:00:59.6]}
40... Rxf2+ {[%clk 0:00:36.5]} 41. Kg1 {[%clk 0:01:01.1]} 41... Rxc2 {[%clk
0:00:35.9]} 42. Qc6 {[%clk 0:00:56.8]} 42... Rd2 {[%clk 0:00:27.7]} 43. Rb8
{[%clk 0:00:49.6]} 43... Rd7 {[%clk 0:00:26.6]} 44. Rxb6 {[%clk 0:00:49.2]}
44... Rc7 {[%clk 0:00:26.7]} 45. Qd6 {[%clk 0:00:48.9]} 45... c4 {[%clk
0:00:27.3]} 46. Rb8 {[%clk 0:00:35.8]} 46... c3 {[%clk 0:00:26]} 47. Qd8 {[%clk
0:00:23.6]} 47... Kh6 {[%clk 0:00:20.9]} 48. bxc3 {[%clk 0:00:09]} 48... Rd7
{[%clk 0:00:17.1]} 49. Qh8+ {[%clk 0:00:09.8]} 49... Qh7 {[%clk 0:00:17.4]} 50.
Qxf6 {[%clk 0:00:10.5]} 50... Rf7 {[%clk 0:00:02.9]} 51. Qg5+ {[%clk 0:00:11.4]}
51... Kg7 {[%clk 0:00:02.1]} 52. Qxe5+ {[%clk 0:00:12.7]} 1-0

[Event "*** Titled Tuesday Blitz"]
[Site "Chess.com"]
[Date "2018.08.07"]
[Round "4"]
[White "BlackBoarder"]
[Black "ShadowJolteon"]
[Result "0-1"]
[WhiteElo "2379"]
[BlackElo "2210"]
[TimeControl "180+2"]
[EndTime "13:49:50 PDT"]
[Termination "ShadowJolteon won by resignation"]

1. e4 {[%clk 0:03:00.8]} 1... c6 {[%clk 0:02:58.6]} 2. Nf3 {[%clk 0:03:01.7]}
2... d5 {[%clk 0:02:59.9]} 3. Nc3 {[%clk 0:03:03]} 3... d4 {[%clk 0:02:39.7]} 4.
Ne2 {[%clk 0:03:03.8]} 4... c5 {[%clk 0:02:41.6]} 5. Ng3 {[%clk 0:03:05]} 5...
e6 {[%clk 0:02:30.1]} 6. Bc4 {[%clk 0:03:05.9]} 6... Nc6 {[%clk 0:02:27.2]} 7.
O-O {[%clk 0:03:07]} 7... Nf6 {[%clk 0:02:23.2]} 8. a4 {[%clk 0:03:06.7]} 8...
Bd6 {[%clk 0:02:20.9]} 9. d3 {[%clk 0:03:07.9]} 9... O-O {[%clk 0:02:17.6]} 10.
Re1 {[%clk 0:03:03]} 10... e5 {[%clk 0:02:14.6]} 11. Nh4 {[%clk 0:02:57.2]}
11... Be6 {[%clk 0:02:12]} 12. Nhf5 {[%clk 0:02:46.3]} 12... Bxc4 {[%clk
0:02:11.5]} 13. dxc4 {[%clk 0:02:48.2]} 13... g6 {[%clk 0:02:01.3]} 14. Nh6+
{[%clk 0:02:29.9]} 14... Kh8 {[%clk 0:01:57.7]} 15. Bg5 {[%clk 0:02:28.2]} 15...
Be7 {[%clk 0:01:55.2]} 16. Qf3 {[%clk 0:02:28.9]} 16... Ng8 {[%clk 0:01:46.2]}
17. Bxe7 {[%clk 0:01:54.3]} 17... Qxe7 {[%clk 0:01:48.1]} 18. Nxg8 {[%clk
0:01:53.5]} 18... Kxg8 {[%clk 0:01:48.7]} 19. b3 {[%clk 0:01:50.3]} 19... Nb4
{[%clk 0:01:41.5]} 20. Re2 {[%clk 0:01:49.4]} 20... Rad8 {[%clk 0:01:36.7]} 21.
Qg4 {[%clk 0:01:47.5]} 21... d3 {[%clk 0:01:34.5]} 22. cxd3 {[%clk 0:01:48]}
22... Rxd3 {[%clk 0:01:35.6]} 23. Nf5 {[%clk 0:01:29.6]} 23... Qf6 {[%clk
0:01:32.8]} 24. Re3 {[%clk 0:01:10.6]} 24... Rfd8 {[%clk 0:01:30.2]} 25. h4
{[%clk 0:01:01.5]} 25... Nc2 {[%clk 0:01:18]} 26. Rxd3 {[%clk 0:00:57.6]} 26...
Rxd3 {[%clk 0:01:19.9]} 27. Rd1 {[%clk 0:00:43.8]} 27... Rxd1+ {[%clk
0:01:03.4]} 28. Qxd1 {[%clk 0:00:45.7]} 28... Nd4 {[%clk 0:01:04.8]} 29. Nxd4
{[%clk 0:00:46.6]} 29... exd4 {[%clk 0:01:01.1]} 30. g3 {[%clk 0:00:43.7]} 30...
Kg7 {[%clk 0:00:57]} 31. f4 {[%clk 0:00:42.1]} 31... Qc6 {[%clk 0:00:53]} 32.
Qf3 {[%clk 0:00:41.4]} 32... f5 {[%clk 0:00:52.5]} 33. Qd1 {[%clk 0:00:13.8]}
33... Qxe4 {[%clk 0:00:48.5]} 34. h5 {[%clk 0:00:13.9]} 34... Qe3+ {[%clk
0:00:47.3]} 35. Kg2 {[%clk 0:00:15.2]} 35... d3 {[%clk 0:00:47.7]} 36. hxg6
{[%clk 0:00:15.3]} 36... hxg6 {[%clk 0:00:47.9]} 37. Qf3 {[%clk 0:00:13.8]}
37... Qe4 {[%clk 0:00:45.5]} 38. Kf2 {[%clk 0:00:08.5]} 38... d2 {[%clk
0:00:32.1]} 39. Qxe4 {[%clk 0:00:04.8]} 39... fxe4 {[%clk 0:00:34]} 40. Ke2
{[%clk 0:00:03.4]} 40... e3 {[%clk 0:00:35.3]} 41. g4 {[%clk 0:00:05]} 41... Kf6
{[%clk 0:00:36.1]} 42. Kd1 {[%clk 0:00:06.4]} 42... a5 {[%clk 0:00:29.7]} 43.
Ke2 {[%clk 0:00:07.3]} 43... g5 {[%clk 0:00:17.6]} 44. f5 {[%clk 0:00:08.4]}
44... Ke5 {[%clk 0:00:19]} 45. Kd1 {[%clk 0:00:08.6]} 45... Kd4 {[%clk
0:00:16.1]} 46. Ke2 {[%clk 0:00:07.5]} 46... Ke5 {[%clk 0:00:16.9]} 47. Kd1
{[%clk 0:00:08.3]} 47... Kd4 {[%clk 0:00:10.2]} 48. Ke2 {[%clk 0:00:09.5]} 48...
Kc3 {[%clk 0:00:10.7]} 49. f6 {[%clk 0:00:09.2]} 49... Kc2 {[%clk 0:00:12.1]}
50. f7 {[%clk 0:00:09.4]} 50... d1=Q+ {[%clk 0:00:13.3]} 51. Kxe3 {[%clk
0:00:10.9]} 51... Qd3+ {[%clk 0:00:14.4]} 52. Kf2 {[%clk 0:00:11.8]} 52... Qd4+
{[%clk 0:00:13.3]} 53. Kf3 {[%clk 0:00:12.2]} 53... Qf6+ {[%clk 0:00:15.2]} 54.
Ke4 {[%clk 0:00:13.1]} 54... Qxf7 {[%clk 0:00:17.1]} 55. Ke5 {[%clk 0:00:14.7]}
55... Qf4+ {[%clk 0:00:17.8]} 56. Kd5 {[%clk 0:00:15.5]} 56... Qd4+ {[%clk
0:00:18.3]} 0-1

[Event "*** Titled Tuesday Blitz"]
[Site "Chess.com"]
[Date "2018.08.07"]
[Round "4"]
[White "KamilPlichta"]
[Black "BilodeauA"]
[Result "0-1"]
[WhiteElo "2600"]
[BlackElo "2724"]
[TimeControl "180+2"]
[EndTime "13:49:55 PDT"]
[Termination "BilodeauA won by resignation"]

1. d4 {[%clk 0:03:01.9]} 1... d5 {[%clk 0:02:25.3]} 2. c4 {[%clk 0:03:02.6]}
2... dxc4 {[%clk 0:02:26.4]} 3. e4 {[%clk 0:03:03.6]} 3... Nf6 {[%clk
0:02:27.1]} 4. e5 {[%clk 0:03:04.6]} 4... Nd5 {[%clk 0:02:28.8]} 5. Bxc4 {[%clk
0:03:06.2]} 5... Nb6 {[%clk 0:02:30.4]} 6. Bb3 {[%clk 0:03:06.1]} 6... Nc6
{[%clk 0:02:31.9]} 7. Ne2 {[%clk 0:03:05]} 7... Bg4 {[%clk 0:02:30]} 8. f3
{[%clk 0:03:01.3]} 8... Bh5 {[%clk 0:02:28.4]} 9. Nbc3 {[%clk 0:02:47.3]} 9...
e6 {[%clk 0:02:29]} 10. a3 {[%clk 0:02:45.1]} 10... Qd7 {[%clk 0:02:26.2]} 11.
Be3 {[%clk 0:02:36.9]} 11... O-O-O {[%clk 0:02:26.7]} 12. Qc1 {[%clk 0:02:23.8]}
12... Kb8 {[%clk 0:02:26.7]} 13. O-O {[%clk 0:02:21.2]} 13... Be7 {[%clk
0:02:27.4]} 14. Rd1 {[%clk 0:02:18.3]} 14... f6 {[%clk 0:02:23.6]} 15. Nf4
{[%clk 0:02:10.6]} 15... Bf7 {[%clk 0:02:24]} 16. d5 {[%clk 0:02:12]} 16... exd5
{[%clk 0:02:19.3]} 17. Ncxd5 {[%clk 0:02:02.2]} 17... Nxd5 {[%clk 0:02:18.5]}
18. Bxd5 {[%clk 0:02:03.1]} 18... fxe5 {[%clk 0:02:00.6]} 19. Bxf7 {[%clk
0:01:54.1]} 19... Qxd1+ {[%clk 0:02:01.2]} 20. Qxd1 {[%clk 0:01:56]} 20... Rxd1+
{[%clk 0:02:02.5]} 21. Rxd1 {[%clk 0:01:57.9]} 21... exf4 {[%clk 0:02:04.1]} 22.
Bf2 {[%clk 0:01:48.8]} 22... Bd6 {[%clk 0:02:04.7]} 23. Bd5 {[%clk 0:01:48.1]}
23... Ne5 {[%clk 0:02:04]} 24. Rd4 {[%clk 0:01:35.9]} 24... Rf8 {[%clk
0:02:01.4]} 25. Ra4 {[%clk 0:01:35.3]} 25... b6 {[%clk 0:01:57.5]} 26. Be4
{[%clk 0:01:35.8]} 26... c6 {[%clk 0:01:56.7]} 27. Bxh7 {[%clk 0:01:35.9]} 27...
g6 {[%clk 0:01:56.3]} 28. Re4 {[%clk 0:01:23]} 28... c5 {[%clk 0:01:36.4]} 29.
Be1 {[%clk 0:01:18.9]} 29... Rh8 {[%clk 0:01:27.9]} 30. Bc3 {[%clk 0:01:11]}
30... Rxh7 {[%clk 0:01:28.6]} 31. Bxe5 {[%clk 0:01:11]} 31... Bxe5 {[%clk
0:01:30.2]} 32. Rxe5 {[%clk 0:01:12.4]} 32... Rd7 {[%clk 0:01:31.9]} 33. Kf2
{[%clk 0:01:06]} 33... c4 {[%clk 0:01:29.7]} 34. g3 {[%clk 0:01:07]} 34... fxg3+
{[%clk 0:01:29.3]} 35. hxg3 {[%clk 0:01:07.8]} 35... a5 {[%clk 0:01:26.7]} 36.
Ke2 {[%clk 0:01:07.5]} 36... Kb7 {[%clk 0:01:24.5]} 37. Re6 {[%clk 0:01:07.6]}
37... Rd5 {[%clk 0:01:25.7]} 38. Rxg6 {[%clk 0:01:07.9]} 38... Rb5 {[%clk
0:01:26.7]} 39. f4 {[%clk 0:01:07.9]} 39... Rxb2+ {[%clk 0:01:27.7]} 40. Kd1
{[%clk 0:01:09]} 40... b5 {[%clk 0:01:21.6]} 41. Kc1 {[%clk 0:00:46.9]} 41... c3
{[%clk 0:01:22]} 42. Re6 {[%clk 0:00:42.3]} 42... Ra2 {[%clk 0:00:41]} 43. f5
{[%clk 0:00:38.4]} 43... Rxa3 {[%clk 0:00:42.1]} 44. f6 {[%clk 0:00:39.8]} 44...
Ra1+ {[%clk 0:00:42]} 45. Kc2 {[%clk 0:00:40.9]} 45... b4 {[%clk 0:00:43.4]} 46.
g4 {[%clk 0:00:27.4]} 46... Ra2+ {[%clk 0:00:41.4]} 47. Kb3 {[%clk 0:00:21.2]}
47... Rb2+ {[%clk 0:00:41]} 48. Ka4 {[%clk 0:00:22]} 48... c2 {[%clk 0:00:38.2]}
49. Re7+ {[%clk 0:00:14.9]} 49... Kb6 {[%clk 0:00:35.7]} 50. Re6+ {[%clk
0:00:15.3]} 50... Kc7 {[%clk 0:00:30.5]} 51. f7 {[%clk 0:00:15.2]} 51... c1=Q
{[%clk 0:00:28.3]} 52. f8=Q {[%clk 0:00:15.1]} 52... Qd1+ {[%clk 0:00:24.1]} 53.
Kb5 {[%clk 0:00:11.7]} 53... Qd3+ {[%clk 0:00:25.2]} 54. Kxa5 {[%clk 0:00:09.6]}
54... Ra2+ {[%clk 0:00:23.2]} 55. Kxb4 {[%clk 0:00:10.3]} 55... Qa3+ {[%clk
0:00:24.2]} 56. Kc4 {[%clk 0:00:10.9]} 56... Qxf8 {[%clk 0:00:24]} 0-1